Workbook

Sheet Instructions
B5: Instructions
B6: This calculator is designed to help you create a paydown plan on your credit card debt.
B7: Blue text indicates places to put in your personal credit card figures.
B8: In Column C, you are able to input your credit card balance and APR% (annual percentage rate).
B9: This will generate a minimum payment that must be maintained in order so that you will not accrue higher balances due to interest charged.
B10: Next you will see a Monthly Payment line. Input the amount you wish to pay each month.
B11: Be careful to put in at or above the minimum payment amount due.
B12: This will calculate your payment schedule in months / years to pay off the balance.
B13: Additionally, you can input a payoff goal to calculate payments based on number of payments (in months).

Sheet Calculator
B5: Credit Card
B6: Card Balance | C6: 5000
B7: APR % | C7: 0.12
B10: Payment Schedule
B11: Min. Payment (interest only) | C11: =(C7*C6)/12 -> 50
B13: Monthly Payment | C13: 120
C14: Monthly payment should be higher than min payment*
B15: Months to pay off | C15: =IFERROR(NPER(C7/12,C13,-C6),"ERROR") -> 54.16870139
C16: ="("&ROUND(C15/12,2)&" yrs)" -> (4.51 yrs)
B18: Total Interest | C18: =+C19-C6 -> 1500.244167
B19: Total Payments | C19: =+C15*C13 -> 6500.244167
B22: Calculate Your Goal | F22: *The Payment Schedule shows what your principal and interest payments would look like at various payoff months. Example: Card balance $10,000, APR 16% paid off in 18 months would be $23,655 (18 payments of $629 principal and $1,314 interest)
B23: Payoff Goal (months) | C23: 24
C24: ="("&ROUND(C23/12,2)&" years)" -> (2 years)
B26: Monthly Payment | C26: =IF(C23=0," - ",PMT(C7/12,C23,-C6)) -> 235.3673611
B27: Total Interest | C27: =IF(C23=0," - ",C26*C23-C6) -> 648.8166668
B28: Total Payments | C28: =+C26*C23 -> 5648.816667

Sheet Table (hidden)
D3: Principal | E3: Interest | F3: Total Interest
C4: 6 | D4: =PMT(Calculator!$C$7/12,C4,-Calculator!$C$6) -> 862.7418336 | E4: =(C4*D4)-Calculator!$C$6 -> 176.4510013 | F4: =+E4*C4 -> 1058.706008
C5: 12 | D5: =PMT(Calculator!$C$7/12,C5,-Calculator!$C$6) -> 444.2439434 | E5: =(C5*D5)-Calculator!$C$6 -> 330.9273207 | F5: =+E5*C5 -> 3971.127848
C6: 18 | D6: =PMT(Calculator!$C$7/12,C6,-Calculator!$C$6) -> 304.9102395 | E6: =(C6*D6)-Calculator!$C$6 -> 488.3843106 | F6: 8790.91759
C7: 24 | D7: =PMT(Calculator!$C$7/12,C7,-Calculator!$C$6) -> 235.3673611 | E7: =(C7*D7)-Calculator!$C$6 -> 648.8166668 | F7: 15571.6
C8: 30 | D8: =PMT(Calculator!$C$7/12,C8,-Calculator!$C$6) -> 193.7405661 | E8: =(C8*D8)-Calculator!$C$6 -> 812.2169824 | F8: 24366.50947
C9: 36 | D9: =PMT(Calculator!$C$7/12,C9,-Calculator!$C$6) -> 166.0715491 | E9: =(C9*D9)-Calculator!$C$6 -> 978.5757663 | F9: 35228.72759
C10: 42 | D10: =PMT(Calculator!$C$7/12,C10,-Calculator!$C$6) -> 146.3781302 | E10: =(C10*D10)-Calculator!$C$6 -> 1147.881467 | F10: 48211.02163
C11: 48 | D11: =PMT(Calculator!$C$7/12,C11,-Calculator!$C$6) -> 131.6691772 | E11: =(C11*D11)-Calculator!$C$6 -> 1320.120504 | F11: 63365.78418
C12: 54 | D12: =PMT(Calculator!$C$7/12,C12,-Calculator!$C$6) -> 120.2829129 | E12: =(C12*D12)-Calculator!$C$6 -> 1495.277296 | F12: 80744.97396
C13: 60 | D13: =PMT(Calculator!$C$7/12,C13,-Calculator!$C$6) -> 111.2222384 | E13: =(C13*D13)-Calculator!$C$6 -> 1673.334305 | F13: 100400.0583
